Workbook

Sheet WQ Report
A1: Parameter | B1: Units | C1: Year Tested | D1: MCL | E1: DLR | F1: Chino I Desalter | H1: Comments
A2: Parameter | B2: Units | C2: Year Tested | D2: MCL | E2: Reporting Level | F2: Chino I Desalter Average | G2: Chino I Desalter Range of detection | H2: Comments
A3: PRIMARY STANDARDS - Mandatory Health-Related Standards | F3: Average | G3: Range
A4: Inorganic Chemicals (IOCs) | H4: Storet #
A5: Aluminum | B5: ppb | C5: 2021 | D5: 1000 | E5: 50 | F5: < 50 | G5: < 50 | H5: 01105 | I5: Confirmed
A6: Antimony | B6: ppb | C6: 2021 | D6: 6 | E6: 6 | F6: < 6 | G6: < 6 | H6: 01097 | I6: Confirmed
A7: Arsenic | B7: ppb | C7: 2021 | D7: 10 | E7: 2 | F7: < 2 | G7: < 2 | H7: 01002 | I7: Confirmed
A8: Asbestos | B8: MFL | C8: 2021 | D8: 7 | E8: 0.2 | F8: 0 | G8: 0 | H8: 81855 | I8: Confirmed
A9: Barium | B9: ppb | C9: 2021 | D9: 1000 | E9: 100 | F9: < 100 | G9: < 100 | H9: 01007 | I9: Confirmed
A10: Beryllium | B10: ppb | C10: 2021 | D10: 4 | E10: 1 | F10: < 1 | G10: < 1 | H10: 01012 | I10: Confirmed
A11: Cadmium | B11: ppb | C11: 2021 | D11: 5 | E11: 1 | F11: < 1 | G11: < 1 | H11: 01027 | I11: Confirmed
A12: Total Chromium | B12: ppb | C12: 2021 | D12: 50 | E12: 10 | F12: < 10 | G12: < 10 | H12: 01034 | I12: Confirmed
A13: Copper | B13: ppb | C13: 2021 | D13: 1000 | E13: 50 | F13: < 50 | G13: < 50 | H13: 01042 | I13: Confirmed
A14: Cyanide | B14: ppb | C14: 2021 | D14: 150 | E14: 100 | F14: < 100 | G14: < 100 | H14: 01291 | I14: Confirmed
A15: Fluoride | B15: ppm | C15: 2021 | D15: 2 | E15: 0.1 | F15: < 0.1 | G15: < 0.1 | H15: 00951 | I15: Confirmed
A16: Hexavalent Chromium | B16: ppb | C16: 2021 | D16: 10 | E16: 1 | F16: < 1 | G16: < 1 | H16: 01032 | I16: Confirmed
A17: Lead | B17: ppb | C17: 2021 | D17: 15 | E17: 5 | F17: < 5 | G17: < 5 | H17: 01051 | I17: Confirmed
A18: Mercury | B18: ppb | C18: 2021 | D18: 2 | E18: 1 | F18: < 1 | G18: < 1 | H18: 71900 | I18: Confirmed
A19: Nickel | B19: ppb | C19: 2021 | D19: 100 | E19: 10 | F19: < 10 | G19: < 10 | H19: 01067 | I19: Confirmed
A20: Nitrate (as N) | B20: mg/L | C20: 2021 | D20: 10 | E20: 0.4 | F20: 2.54 | G20: 1.6 - 4.0 | H20: 00618 | I20: Confirmed
A21: Nitrite (as N) | B21: mg/L | C21: 2021 | D21: 1 | E21: 0.4 | F21: < 0.4 | G21: < 0.4 | H21: 00620 | I21: Confirmed
A22: Perchlorate | B22: ppb | C22: 2021 | D22: 6 | E22: 2 | F22: <2 | G22: <2 | H22: A-031 | I22: Confirmed
A23: Selenium | B23: ppb | C23: 2021 | D23: 50 | E23: 5 | F23: < 5 | G23: < 5 | H23: 01147 | I23: Confirmed
A24: Thallium | B24: ppb | C24: 2021 | D24: 2 | E24: 1 | F24: < 1 | G24: < 1 | H24: 01059 | I24: Confirmed
A25: Volatile Organic Chemicals (VOCs)
A26: Benzene | B26: ppb | C26: 2021 | D26: 1 | E26: 0.5 | F26: < 0.5 | G26: < 0.5 | H26: 34030 | I26: Confirmed
A27: Carbon Tetrachloride | B27: ppb | C27: 2021 | D27: 0.5 | E27: 0.5 | F27: < 0.5 | G27: < 0.5 | H27: 32102 | I27: Confirmed
A28: 1,2-Dichlorobenzene | B28: ppb | C28: 2021 | D28: 600 | E28: 0.5 | F28: < 0.5 | G28: < 0.5 | H28: 34536 | I28: Confirmed
A29: 1,4-Dichlorobenzene | B29: ppb | C29: 2021 | D29: 5 | E29: 0.5 | F29: < 0.5 | G29: < 0.5 | H29: 34571 | I29: Confirmed
A30: 1,1-Dichloroethane | B30: ppb | C30: 2021 | D30: 5 | E30: 0.5 | F30: < 0.5 | G30: < 0.5 | H30: 34496 | I30: Confirmed
A31: 1,2-Dichloroethane | B31: ppb | C31: 2021 | D31: 0.5 | E31: 0.5 | F31: < 0.5 | G31: < 0.5 | H31: 34531 | I31: Confirmed
A32: 1,1-Dichloroethylene | B32: ppb | C32: 2021 | D32: 6 | E32: 0.5 | F32: < 0.5 | G32: < 0.5 | H32: 34501 | I32: Confirmed
A33: cis-1,2-Dichloroethylene | B33: ppb | C33: 2021 | D33: 6 | E33: 0.5 | F33: < 0.5 | G33: < 0.5 | H33: 77093 | I33: Confirmed
A34: trans-1,2-Dichloroethylene | B34: ppb | C34: 2021 | D34: 10 | E34: 0.5 | F34: < 0.5 | G34: < 0.5 | H34: 34546 | I34: Confirmed
A35: Dichloromethane (Methyl Chloride) | B35: ppb | C35: 2021 | D35: 5 | E35: 0.5 | F35: < 0.5 | G35: < 0.5 | H35: 34423 | I35: Confirmed
A36: 1,3-Dichloropropene | B36: ppb | C36: 2021 | D36: 0.5 | E36: 0.5 | F36: < 0.5 | G36: < 0.5 | H36: 34561 | I36: Confirmed
A37: 1,2-Dichloropropane | B37: ppb | C37: 2021 | D37: 5 | E37: 0.5 | F37: < 0.5 | G37: < 0.5 | H37: 34541 | I37: Confirmed
A38: Ethylbenzene | B38: ppb | C38: 2021 | D38: 300 | E38: 0.5 | F38: < 0.5 | G38: < 0.5 | H38: 34371 | I38: Confirmed
A39: Methyl-tert-butyl ether (MTBE) | B39: ppb | C39: 2021 | D39: 13 | E39: 3 | F39: < 3 | G39: < 3 | H39: 46491 | I39: Confirmed
A40: Styrene | B40: ppb | C40: 2021 | D40: 100 | E40: 0.5 | F40: < 0.5 | G40: < 0.5 | H40: 77128 | I40: Confirmed
A41: 1,1,2,2-Tetrachloroethane | B41: ppb | C41: 2021 | D41: 1 | E41: 0.5 | F41: < 0.5 | G41: < 0.5 | H41: 34516 | I41: Confirmed
A42: Tetrachloroethylene (PCE) | B42: ppb | C42: 2021 | D42: 5 | E42: 0.5 | F42: < 0.5 | G42: < 0.5 | H42: 34475 | I42: Confirmed
A43: Toluene | B43: ppb | C43: 2021 | D43: 150 | E43: 0.5 | F43: < 0.5 | G43: < 0.5 | H43: 34010 | I43: Confirmed
A44: 1,2,4 Trichlorobenzene | B44: ppb | C44: 2021 | D44: 5 | E44: 0.5 | F44: < 0.5 | G44: < 0.5 | H44: 34551 | I44: Confirmed
A45: 1,1,1-Trichloroethane | B45: ppb | C45: 2021 | D45: 200 | E45: 0.5 | F45: < 0.5 | G45: < 0.5 | H45: 34506 | I45: Confirmed
A46: 1,1,2-Trichloroethane | B46: ppb | C46: 2021 | D46: 5 | E46: 0.5 | F46: < 0.5 | G46: < 0.5 | H46: 34511 | I46: Confirmed
A47: Trichloroethylene (TCE) | B47: ppb | C47: 2021 | D47: 5 | E47: 0.5 | F47: < 0.5 | G47: < 0.5 | H47: 39180 | I47: Confirmed
A48: Trichlorofluoromethane (Freon-11) | B48: ppb | C48: 2021 | D48: 150 | E48: 5 | F48: < 5 | G48: < 5 | H48: 34488 | I48: Confirmed
A49: 1,1,2-Trichloro-1,2,2-Trifluoroethane (Trichlorotrifluoroethane) | B49: ppb | C49: 2021 | D49: 1200 | E49: 10 | F49: < 10 | G49: < 10 | H49: 81611 | I49: Confirmed
A50: Vinyl Chloride | B50: ppb | C50: 2021 | D50: 0.5 | E50: 0.5 | F50: < 0.5 | G50: < 0.5 | H50: 39175 | I50: Confirmed
A51: Xylenes (Total) | B51: ppb | C51: 2021 | D51: 1750 | E51: 0.5 | F51: < 0.5 | G51: < 0.5 | H51: 81551 | I51: Confirmed
A52: Synthetic Organic Chemicals (SOCs) | I52: Confirmed
A53: Alachlor | B53: ppb | C53: 2021 | D53: 2 | E53: 1 | F53: < 1 | G53: < 1 | H53: 77825 | I53: Confirmed
A54: Atrazine | B54: ppb | C54: 2021 | D54: 1 | E54: 0.5 | F54: < 0.5 | G54: < 0.5 | H54: 39033 | I54: Confirmed
A55: Bentazon | B55: ppb | C55: 2021 | D55: 18 | E55: 2 | F55: < 2 | G55: < 2 | H55: 38710 | I55: Confirmed
A56: Benzo (a) pyrene | B56: ppb | C56: 2021 | D56: 0.2 | E56: 0.1 | F56: < 0.1 | G56: < 0.1 | H56: 34247 | I56: Confirmed
A58: Parameter | B58: Units | C58: Year Tested | D58: MCL | E58: Reporting Level | F58: Chino I Desalter | G58: Chino I Desalter | H58: Comments
A59: PRIMARY STANDARDS - Mandatory Health-Related Standards | F59: Average | G59: Range
A60: Synthetic Organic Chemicals (SOCs) (Continued)
A61: Carbofuran | B61: ppb | C61: 2021 | D61: 18 | E61: 5 | F61: < 5 | G61: < 5 | H61: 81405 | I61: Confirmed
A62: 2,4-D | B62: ppb | C62: 2021 | D62: 70 | E62: 10 | F62: < 10 | G62: < 10 | H62: 39730 | I62: Confirmed
A63: Dalapon | B63: ppb | C63: 2021 | D63: 200 | E63: 10 | F63: < 10 | G63: < 10 | H63: 38432 | I63: Confirmed
A64: Di (2-ethylhexyl) adipate | B64: ppb | C64: 2021 | D64: 400 | E64: 5 | F64: < 5 | G64: < 5 | H64: A -26 | I64: Confirmed
A65: Di (2-ethylhexyl) phthalate | B65: ppb | C65: 2021 | D65: 4 | E65: 3 | F65: < 3 | G65: < 3 | H65: 39100 | I65: Confirmed
A66: Dibromochloropropane (DBCP) | B66: ppb | C66: 2021 | D66: 0.2 | E66: 0.01 | F66: < 0.01 | G66: < 0.01 | H66: 38761 | I66: Confirmed
A67: Dinoseb | B67: ppb | C67: 2021 | D67: 7 | E67: 2 | F67: < 2 | G67: < 2 | H67: 81287 | I67: Confirmed
A68: Diquat | B68: ppb | C68: 2020 | D68: 20 | E68: 4 | F68: < 4 | G68: < 4 | H68: 78885 | I68: Confirmed
A69: Endothall | B69: ppb | C69: 2021 | D69: 100 | E69: 45 | F69: < 45 | G69: < 45 | H69: 38926 | I69: Confirmed
A70: Endrin | B70: ppb | C70: 2021 | D70: 2 | E70: 0.1 | F70: < 0.1 | G70: < 0.1 | H70: 39390 | I70: Confirmed
A71: Ethylene Dibromide (EDB) | B71: ppb | C71: 2021 | D71: 0.05 | E71: 0.02 | F71: < 0.02 | G71: < 0.02 | H71: 77651 | I71: Confirmed
A72: Glyphosate | B72: ppb | C72: 2021 | D72: 700 | E72: 25 | F72: < 25 | G72: < 25 | H72: 79743 | I72: Confirmed
A73: Heptachlor | B73: ppb | C73: 2021 | D73: 0.01 | E73: 0.01 | F73: < 0.01 | G73: < 0.01 | H73: 39410 | I73: Confirmed
A74: Heptachlor Epoxide | B74: ppb | C74: 2021 | D74: 0.01 | E74: 0.01 | F74: < 0.01 | G74: < 0.01 | H74: 39420 | I74: Confirmed
A75: Hexachlorobenzene | B75: ppb | C75: 2021 | D75: 1 | E75: 0.5 | F75: < 0.5 | G75: < 0.5 | H75: 39700 | I75: Confirmed
A76: Hexachlorocyclopentadiene | B76: ppb | C76: 2021 | D76: 50 | E76: 1 | F76: < 1 | G76: < 1 | H76: 34386 | I76: Confirmed
A77: Lindane | B77: ppb | C77: 2021 | D77: 0.2 | E77: 0.2 | F77: < 0.2 | G77: < 0.2 | H77: 39340 | I77: Confirmed
A78: Methoxychlor | B78: ppb | C78: 2021 | D78: 30 | E78: 10 | F78: < 10 | G78: < 10 | H78: 39480 | I78: Confirmed
A79: Molinate | B79: ppb | C79: 2021 | D79: 20 | E79: 2 | F79: < 2 | G79: < 2 | H79: 82199 | I79: Confirmed
A80: Oxamyl (Vydate) | B80: ppb | C80: 2021 | D80: 50 | E80: 20 | F80: < 20 | G80: < 20 | H80: 38865 | I80: Confirmed
A81: Pentachlorophenol | B81: ppb | C81: 2021 | D81: 1 | E81: 0.2 | F81: < 0.2 | G81: < 0.2 | H81: 39032 | I81: Confirmed
A82: Picloram | B82: ppb | C82: 2021 | D82: 500 | E82: 1 | F82: < 1 | G82: < 1 | H82: 39720 | I82: Confirmed
A83: Polychlorinated Biphenyls (PCBs) (as decachlorobiphenyl) | B83: ppb | C83: 2021 | D83: 0.5 | E83: 0.5 | F83: < 0.5 | G83: < 0.5 | H83: 39516 | I83: Confirmed
A84: Simazine | B84: ppb | C84: 2021 | D84: 4 | E84: 1 | F84: < 1 | G84: < 1 | H84: 39055 | I84: Confirmed
A85: Thiobencarb | B85: ppb | C85: 2021 | D85: 70 | E85: 1 | F85: < 1 | G85: < 1 | H85: A - 001 | I85: Confirmed
A86: Toxaphene | B86: ppb | C86: 2021 | D86: 3 | E86: 1 | F86: < 1 | G86: < 1 | H86: 39400 | I86: Confirmed
A87: 2,3,7,8-TCDD (Dioxin) | B87: ppb | C87: 2021 | D87: 30 | E87: 5 | F87: 0 | G87: 0 | H87: 34676 | I87: Confirmed
A88: 2,4,5-TP (Silvex) | B88: ppb | C88: 2021 | D88: 50 | E88: 1 | F88: < 1 | G88: < 1 | H88: 39045 | I88: Confirmed
A89: Microbiological Constituents
A90: Total Coliform Bacteria | B90: Highest % of Monthly Positives | C90: 2021 | D90: (1) | E90: NA | F90: 0 | G90: <1 - 2 | H90: (1) NOTE: None | I90: Confirmed
A91: Fecal Coliform or E.coli | B91: Highest % of Monthly Positives | C91: 2021 | D91: (2) | E91: NA | F91: 0 | H91: (2) NOTE: None | I91: Confirmed
A92: Radiological
A93: Gross Alpha | B93: pCi/L | C93: 2021 | D93: 15 | E93: 3 | F93: 0.808 | G93: 0.808 | H93: 1501 | I93: Confirmed
A94: Disinfectant residuals, disinfection by-products, and disinfection by-products precursors
A95: Chlorine | B95: ppm | C95: 2021 | D95: 4.0 | E95: NA | F95: 1.33 | G95: 1.20 - 1.49 | H95: (a) Annual average of product water delivered to Chino and JCSD. | I95: Confirmed
A96: Chloramine | B96: ppm | C96: 2021 | D96: 4.0 | E96: NA | F96: 1.46 | G96: 1.30 - 1.62 | H96: (b) Annual average of product water delivered to Chino Hills. | I96: Confirmed
A97: Total Trihalomethanes (THM'S/TTHM) | B97: ppb | C97: 2021 | D97: 80 | E97: 0.5 | F97: < 0.5 | G97: < 0.5 | H97: 82080 | I97: Confirmed
A98: - Bromodichloromethane | B98: ppb | C98: 2021 | D98: NA | E98: 0.5 | F98: < 0.5 | G98: < 0.5 | H98: 32101 | I98: Confirmed
A99: - Bromoform | B99: ppb | C99: 2021 | D99: NA | E99: 0.5 | F99: < 0.5 | G99: < 0.5 | H99: 32104 | I99: Confirmed
A100: - Chloroform | B100: ppb | C100: 2021 | D100: NA | E100: 0.5 | F100: < 0.5 | G100: < 0.5 | H100: 32106 | I100: Confirmed
A101: - Dibromochloromethane | B101: ppb | C101: 2021 | D101: NA | E101: 0.5 | F101: < 0.5 | G101: < 0.5 | H101: 32105 | I101: Confirmed
A102: Haloacetic Acids (Five) (HAA5) | B102: ppb | C102: 2021 | D102: 60 | E102: 2 | F102: < 2 | G102: < 2 | H102: A - 049 | I102: Confirmed
A103: Parameter | B103: Units | C103: Year Tested | D103: MCL | E103: Reporting Level | F103: Chino I Desalter | G103: Chino I Desalter | H103: Comments
A104: Parameter | B104: Units | C104: Year Tested | D104: MCL | E104: DLR | F104: Chino I Desalter | H104: Comments
A105: PRIMARY STANDARDS - Mandatory Health-Related Standards | F105: Average | G105: Range
A106: Disinfectant residuals, disinfection by-products, and disinfection by-products precursors (Continued)
A107: - Monochloroacetic Acid | B107: ppb | C107: 2021 | D107: NA | E107: 2 | F107: < 2 | G107: < 2 | H107: A - 042 | I107: Confirmed
A108: - Dichloroacetic Acid | B108: ppb | C108: 2021 | D108: NA | E108: 1 | F108: < 1 | G108: < 1 | H108: 77288 | I108: Confirmed
A109: - Trichloroacetic Acid | B109: ppb | C109: 2021 | D109: NA | E109: 1 | F109: < 1 | G109: < 1 | H109: 82723 | I109: Confirmed
A110: - Monobromoacetic Acid | B110: ppb | C110: 2021 | D110: NA | E110: 1 | F110: < 1 | G110: < 1 | H110: A - 041 | I110: Confirmed
A111: - Dibromoacetic Acid | B111: ppb | C111: 2021 | D111: NA | E111: 1 | F111: < 1 | G111: < 1 | H111: 82721 | I111: Confirmed
A112: Total Organic Carbon (TOC) | B112: ppm | C112: 2020 | D112: NA | E112: 0.3 | F112: < 0.3 | G112: < 0.3 | H112: 00680 | I112: Confirmed
A113: SECONDARY STANDARDS - Aesthetic Standards | F113: Average | G113: Range | I113: Confirmed
A114: Aluminum | B114: ppb | C114: 2021 | D114: 1000 | E114: 50 | F114: < 50 | G114: < 50 | H114: 01105 | I114: Confirmed
A115: Color | B115: Color Units | C115: 2021 | D115: 15 | E115: NA | F115: < 3 | G115: < 3 | H115: 00081 | I115: Confirmed
A116: Chloride | B116: ppm | C116: 2021 | D116: 500 | E116: NA | F116: 110 | G116: 110 | H116: 00940 | I116: Confirmed
A117: Copper | B117: ppb | C117: 2021 | D117: 1000 | E117: <50 | F117: < 50 | G117: < 50 | H117: 01042 | I117: Confirmed
A118: Foaming Agents (MBAS) | B118: ppm | C118: 2021 | D118: 0.5 | E118: 0.1 | F118: < 0.08 | G118: < 0.08 | H118: 38260 | I118: Confirmed
A119: Iron | B119: ppb | C119: 2021 | D119: 300 | E119: 100 | F119: < 100 | G119: < 100 | H119: 01045 | I119: Confirmed
A120: Manganese | B120: ppb | C120: 2021 | D120: 50 | E120: 20 | F120: < 20 | G120: < 20 | H120: 01055 | I120: Confirmed
A121: Methyl-tert-butyl ether (MTBE) | B121: ppb | C121: 2021 | D121: 13 | E121: 3 | F121: < 3 | G121: < 3 | H121: 46491 | I121: Confirmed
A122: Odor - Threshold | B122: TON | C122: 2021 | D122: 3 | E122: 1 | F122: < 1 | G122: < 1 | H122: 00086 | I122: Confirmed
A123: Silver | B123: ppb | C123: 2021 | D123: 100 | E123: 10 | F123: < 10 | G123: < 10 | H123: 01077 | I123: Confirmed
A124: Specific Conductance | B124: uS/cm | C124: 2021 | D124: 1600 | E124: NA | F124: 512 | G124: 370 - 580 | I124: Confirmed
A125: Sulfate | B125: ppm | C125: 2021 | D125: 500 | E125: 0.5 | F125: < 0.5 | G125: < 0.5 - 0.8 | H125: 00945 | I125: Confirmed
A126: Thiobencarb | B126: ppb | C126: 2021 | D126: 70 | E126: 1 | F126: < 1 | G126: < 1 | H126: A - 001 | I126: Confirmed
A127: Total Dissolved Solids (TDS) | B127: ppm | C127: 2021 | D127: 1000 | E127: 10 | F127: 361 | G127: 220 - 460 | I127: Confirmed
A128: Turbidity | B128: NTU | C128: 2021 | D128: 5 | E128: 0.1 | F128: < 0.1 | G128: < 0.1 | H128: 82079 | I128: Confirmed
A129: Zinc | B129: ppb | C129: 2021 | D129: 5000 | E129: 50 | F129: < 50 | G129: < 50 | H129: 01092 | I129: Confirmed
A130: OTHER MONITORED PARAMETERS | F130: Average | G130: Range
A131: General Mineral and Physical
A132: Bicarbonate | B132: ppm | C132: 2021 | D132: NA | E132: 5 | F132: 85 | G132: 64 - 140 | H132: 00440 | I132: Confirmed
A133: Calcium | B133: ppm | C133: 2021 | D133: NA | E133: NA | F133: 51 | G133: 34 - 61 | H133: 00916 | I133: Confirmed
A134: Carbonate | B134: ppm | C134: 2021 | D134: NA | E134: NA | F134: < 5 | G134: < 5 | H134: 00445 | I134: Confirmed
A135: Hydroxide | B135: ppm | C135: 2021 | D135: NA | E135: NA | F135: < 5 | G135: < 5 | H135: 71830 | I135: Confirmed
A136: Magnesium | B136: ppm | C136: 2020 | D136: NA | E136: NA | F136: 11.7 | G136: 7.8 - 13 | H136: 00927 | I136: Confirmed
A137: pH | B137: Std. Units | C137: 2021 | D137: NA | E137: NA | F137: 7.66 | G137: 7.1 - 7.9 | H137: 00403 | I137: Confirmed
A138: Potassium | B138: ppm | C138: 2021 | D138: NA | E138: NA | F138: 0.95 | G138: 0 - 1.4 | H138: 00937 | I138: Confirmed
A139: Sodium | B139: ppm | C139: 2021 | D139: NA | E139: NA | F139: 27 | G139: 25 - 29 | H139: 00929 | I139: Confirmed
A140: Total Alkalinity | B140: ppm | C140: 2021 | D140: NA | E140: NA | F140: 85 | G140: 64 - 140 | H140: 00410 | I140: Confirmed
A141: Total Hardness | B141: ppm | C141: 2021 | D141: NA | E141: NA | F141: 177 | G141: 120 - 210 | H141: 00900 | I141: Confirmed
A142: Additional Analyses
A143: Total Silica | B143: ppm | C143: 2021 | D143: NA | E143: NA | F143: 8.55 | G143: 8.3 - 8.8 | H143: 00955 | I143: Confirmed
A144: Boron | B144: ppb | C144: 2021 | D144: NA | E144: 100 | F144: < 100 | G144: < 100 | H144: 01020 | I144: Confirmed
A145: 1,4-Dioxane | B145: ppb | C145: 2021 | D145: NA | E145: 0.2 | F145: <0.2 | G145: <0.2 | H145: C1J3760, C1L2653 | I145: Confirmed
A147: N-Nitrosodimethylamine (NDMA) | B147: ppb | C147: 2021 | D147: NA | E147: 0.004 | F147: < 0.004 | G147: < 0.004 | H147: 34438 - C1G0514 | I147: Confirmed
A148: 1,2,3-Trichloropropane (1,2,3-TCP) | B148: ppb | C148: 2021 | D148: 0.005 | E148: 0.005 | F148: < 0.005 | G148: < 0.005 | H148: 77443 | I148: Confirmed
A149: Parameter | B149: Units | C149: Year Tested | D149: RL / NL | E149: Reporting Level | F149: Chino I Desalter | G149: Chino I Desalter | H149: Comments
A150: Per- and Polyfluoroalkyl Substances (PFAS)
A151: Hexafluoropropylene oxide dimer acid (HFPO-DA) | B151: ppt | C151: 2021 | D151: NA | E151: 2 | F151: <2 | G151: <2
A152: N-EtFOSAA | B152: ppt | C152: 2021 | D152: NA | E152: 2 | F152: <2 | G152: <2
A153: N-MeFOSAA | B153: ppt | C153: 2021 | D153: NA | E153: 2 | F153: <2 | G153: <2
A154: Perfluorobutanesulfonic Acid (PFBS) | B154: ppt | C154: 2021 | D154: NA | E154: 2 | F154: <2 | G154: <2
A155: Perfluorodecanoic Acid (PFDA) | B155: ppt | C155: 2021 | D155: NA | E155: 2 | F155: <2 | G155: <2
A156: Perfluorododecanoic Acid (PFDoDA) | B156: ppt | C156: 2021 | D156: NA | E156: 2 | F156: <2 | G156: <2
A157: Perfluoroheptanoic Acid (PFHpA) | B157: ppt | C157: 2021 | D157: NA | E157: 2 | F157: <2 | G157: <2
A158: Perfluorohexanesulfonic Acid (PFHxS) | B158: ppt | C158: 2021 | D158: NA | E158: 2 | F158: <2 | G158: <2
A159: Perfluorohexanoic Acid (PFHxA) | B159: ppt | C159: 2021 | D159: NA | E159: 2 | F159: <2 | G159: <2
A160: Perfluorononanoic Acid (PFNA) | B160: ppt | C160: 2021 | D160: NA | E160: 2 | F160: <2 | G160: <2
A161: Perfluorooctanesulfonic Acid (PFOS) | B161: ppt | C161: 2021 | D161: 40 / 6.1 | E161: 2 | F161: <2 | G161: <2
A162: Perfluorooctanoic Acid (PFOA) | B162: ppt | C162: 2021 | D162: 10 / 5.1 | E162: 2 | F162: <2 | G162: <2
A163: Perfluorotetradecanoic Acid (PFTeDA) | B163: ppt | C163: 2021 | D163: NA | E163: 2 | F163: <2 | G163: <2
A164: Perfluorotridecanoic Acid (PFTrDA) | B164: ppt | C164: 2021 | D164: NA | E164: 2 | F164: <2 | G164: <2
A165: Perfluoroundecanoic Acid (PFUnA) | B165: ppt | C165: 2021 | D165: NA | E165: 2 | F165: <2 | G165: <2
A166: 11-chloroeicosafluoro 3oxaundecane-1-sulfonic Acid | B166: ppt | C166: 2021 | D166: NA | E166: 2 | F166: <2 | G166: <2
A167: 9-chlorohexadecafluoro-3-oxanone-1-sulfonic Acid | B167: ppt | C167: 2021 | D167: NA | E167: 2 | F167: <2 | G167: <2
A168: 4,8-dioxa-3H-perfluorononanoic Acid (ADONA) | B168: ppt | C168: 2021 | D168: NA | E168: 2 | F168: <2 | G168: <2

Sheet Lab Data
C1: Blended Product Water | I1: Clearwell Boosters | U1: Product Average
C2: Before Clearwell | I2: Chino | L2: Chino Hills | O2: JCSD
A3: 2021 | C3: NO3 | D3: NO3-N | E3: TDS | F3: pH | G3: EC | H3: Langelier | I3: NO3 | J3: NO3-N | K3: TDS | L3: NO3 | M3: NO3-N | N3: TDS | O3: NO3 | P3: NO3-N | Q3: TDS | R3: pH | S3: EC | T3: Langelier | U3: Langelier | V3: TCE | W3: 123TCP
C4: mg/L | D4: mg/L | E4: mg/L | G4: umhos/cm | H4: Index | I4: mg/L | J4: mg/L | K4: mg/L | L4: mg/L | M4: mg/L | N4: mg/L | O4: mg/L | P4: mg/L | Q4: mg/L | S4: umhos/cm | T4: Index | U4: Index | V4: ug/L | W4: ug/L
A5: Jan | B5: 5 | C5: =D5*4.4268 -> 14.16576 | D5: 3.2 | E5: 290 | F5: 7.7 | G5: 450 | H5: -0.1 | I5: =J5*4.4268 -> 13.2804 | J5: 3 | K5: 340 | L5: =M5*4.4268 -> 13.2804 | M5: 3 | N5: 320 | O5: =P5*4.4268 -> 13.72308 | P5: 3.1 | Q5: 340 | R5: 7.8 | S5: 520 | T5: 0.03 | U5: =IF(AND(H5="",T5=""),"",AVERAGE(H5,T5)) -> -0.035
B6: 12 | C6: =D6*4.4268 -> 15.4938 | D6: 3.5 | E6: 290 | F6: 7.9 | G6: 520 | H6: 0.35 | I6: =J6*4.4268 -> 13.72308 | J6: 3.1 | K6: 310 | L6: =M6*4.4268 -> 13.2804 | M6: 3 | N6: 290 | O6: =P6*4.4268 -> 13.72308 | P6: 3.1 | Q6: 290 | R6: 7.9 | S6: 510 | T6: 0.27 | U6: 0.31 | V6: <0.5 | W6: <0.005
B7: 19 | C7: 18.14988 | D7: 4.1 | E7: 360 | F7: 7.8 | G7: 520 | H7: 0.07 | I7: 15.05112 | J7: 3.4 | K7: 390 | L7: 14.60844 | M7: 3.3 | N7: 380 | O7: 15.4938 | P7: 3.5 | Q7: 380 | R7: 7.8 | S7: 540 | T7: 0.08 | U7: 0.075
B8: 28 | C8: 15.05112 | D8: 3.4 | E8: 310 | F8: 7.9 | G8: 500 | H8: 0.36 | I8: 13.72308 | J8: 3.1 | K8: 410 | L8: 13.2804 | M8: 3 | N8: 400 | O8: 14.16576 | P8: 3.2 | Q8: 380 | R8: 7.9 | S8: 580 | T8: 0.32 | U8: 0.34
A9: Feb | B9: 2 | C9: =D9*4.4268 -> 15.4938 | D9: 3.5 | E9: 390 | F9: 7.9 | G9: 580 | H9: 0.25 | I9: =J9*4.4268 -> 13.2804 | J9: 3 | K9: 380 | L9: =M9*4.4268 -> 12.83772 | M9: 2.9 | N9: 370 | O9: =P9*4.4268 -> 13.2804 | P9: 3 | Q9: 380 | R9: 7.8 | S9: 560 | T9: 0.08 | U9: =IF(AND(H9="",T9=""),"",AVERAGE(H9,T9)) -> 0.165
B10: 9 | C10: 11.067 | D10: 2.5 | E10: 380 | F10: 7.7 | G10: 490 | H10: -0.05 | I10: 15.4938 | J10: 3.5 | K10: 440 | L10: 15.05112 | M10: 3.4 | N10: 450 | O10: 15.05112 | P10: 3.4 | Q10: 440 | R10: 7.7 | S10: 550 | T10: 0 | U10: =IF(AND(H10="",T10=""),"",AVERAGE(H10,T10)) -> -0.025 | W10: <0.005
B11: 16 | C11: 16.82184 | D11: 3.8 | E11: 390 | F11: 7.5 | G11: 600 | H11: -0.2 | I11: 15.05112 | J11: 3.4 | K11: 310 | L11: 14.60844 | M11: 3.3 | N11: 290 | O11: 15.4938 | P11: 3.5 | Q11: 320 | R11: 7.6 | S11: 490 | T11: -0.25 | U11: -0.225
B12: 23 | C12: 9.29628 | D12: 2.1 | E12: 360 | F12: 7.6 | G12: 620 | H12: -0.16 | I12: 11.50968 | J12: 2.6 | K12: 320 | L12: 11.95236 | M12: 2.7 | N12: 290 | O12: 11.50968 | P12: 2.6 | Q12: 320 | R12: 7.6 | S12: 540 | T12: -0.13 | U12: -0.145
A13: Mar | B13: 2 | C13: =D13*4.4268 -> 13.2804 | D13: 3 | E13: 420 | F13: 7.6 | G13: 560 | H13: -0.22 | I13: =J13*4.4268 -> 13.2804 | J13: 3 | K13: 350 | L13: =M13*4.4268 -> 13.72308 | M13: 3.1 | N13: 340 | O13: =P13*4.4268 -> 13.72308 | P13: 3.1 | Q13: 360 | R13: 7.7 | S13: 520 | T13: -0.02 | U13: -0.12
B14: 9 | C14: =D14*4.4268 -> 11.95236 | D14: 2.7 | E14: 400 | F14: 7.7 | G14: 520 | H14: -0.19 | I14: =J14*4.4268 -> 13.72308 | J14: 3.1 | K14: 410 | L14: =M14*4.4268 -> 12.83772 | M14: 2.9 | N14: 390 | O14: =P14*4.4268 -> 14.16576 | P14: 3.2 | Q14: 420 | R14: 7.6 | S14: 560 | T14: -0.2 | U14: -0.195 | V14: <0.5 | W14: <0.005
B15: 16 | C15: 12.83772 | D15: 2.9 | E15: 380 | F15: 7.6 | G15: 500 | H15: -0.27 | I15: 12.39504 | J15: 2.8 | K15: 350 | L15: 11.95236 | M15: 2.7 | N15: 340 | O15: 11.95236 | P15: 2.7 | Q15: 340 | R15: 7.6 | S15: 460 | T15: -0.31 | U15: -0.29
B16: 23 | C16: 15.05112 | D16: 3.4 | E16: 330 | F16: 7.8 | G16: 500 | H16: 0.11 | I16: 14.16576 | J16: 3.2 | K16: 350 | L16: 14.16576 | M16: 3.2 | N16: 360 | O16: 14.16576 | P16: 3.2 | Q16: 350 | R16: 7.8 | S16: 550 | T16: 0.22 | U16: 0.165
B17: 30 | C17: =D17*4.4268 -> 11.95236 | D17: 2.7 | E17: 340 | F17: 7.8 | G17: 480 | H17: 0.2 | I17: =J17*4.4268 -> 11.067 | J17: 2.5 | K17: 360 | L17: =M17*4.4268 -> 11.067 | M17: 2.5 | N17: 360 | O17: =P17*4.4268 -> 11.067 | P17: 2.5 | Q17: 340 | R17: 7.7 | S17: 490 | T17: 0.04 | U17: 0.12
A18: Apr | B18: 6 | C18: 16.37916 | D18: 3.7 | E18: 370 | F18: 7.8 | G18: 490 | H18: 0.09 | I18: 14.16576 | J18: 3.2 | K18: 370 | L18: 13.72308 | M18: 3.1 | N18: 380 | O18: 14.16576 | P18: 3.2 | Q18: 390 | R18: 7.8 | S18: 510 | T18: 0.07 | U18: 0.08
B19: 13 | C19: 11.50968 | D19: 2.6 | E19: 260 | F19: 7.8 | G19: 450 | H19: 0.16 | I19: 11.067 | J19: 2.5 | K19: 310 | L19: 10.18164 | M19: 2.3 | N19: 310 | O19: 11.067 | P19: 2.5 | Q19: 310 | R19: 7.8 | S19: 500 | T19: 0.12 | U19: 0.14 | V19: <0.5 | W19: <0.005
B20: 20 | C20: 15.05112 | D20: 3.4 | E20: 460 | F20: 7.7 | G20: 580 | H20: 0.02 | I20: 12.39504 | J20: 2.8 | K20: 430 | L20: 11.50968 | M20: 2.6 | N20: 440 | O20: 12.39504 | P20: 2.8 | Q20: 430 | R20: 7.6 | S20: 540 | T20: -0.18 | U20: -0.08
B21: 27 | C21: 15.93648 | D21: 3.6 | E21: 460 | F21: 7.5 | G21: 570 | H21: -0.26 | I21: 11.95236 | J21: 2.7 | K21: 410 | L21: 11.95236 | M21: 2.7 | N21: 420 | O21: 11.95236 | P21: 2.7 | Q21: 420 | R21: 7.6 | S21: 560 | T21: -0.05 | U21: -0.155
A22: May | B22: 4 | C22: =D22*4.4268 -> 15.4938 | D22: 3.5 | E22: 380 | F22: 7.7 | G22: 470 | H22: -0.04 | I22: 12.83772 | J22: 2.9 | K22: 420 | L22: 12.39504 | M22: 2.8 | N22: 420 | O22: 12.39504 | P22: 2.8 | Q22: 410 | R22: 7.5 | S22: 530 | T22: -0.24 | U22: -0.14
B23: 11 | C23: 15.05112 | D23: 3.4 | E23: 400 | F23: 8 | G23: 580 | H23: 0.33 | I23: 11.50968 | J23: 2.6 | K23: 390 | L23: 10.62432 | M23: 2.4 | N23: 400 | O23: 9.73896 | P23: 2.2 | Q23: 410 | R23: 7.8 | S23: 550 | T23: 0.11 | U23: 0.22 | V23: <0.5 | W23: <0.005
B24: 18 | C24: 10.62432 | D24: 2.4 | E24: 360 | F24: 7.8 | G24: 520 | H24: 0.18 | I24: 9.29628 | J24: 2.1 | K24: 360 | L24: 8.8536 | M24: 2 | N24: 370 | O24: 8.8536 | P24: 2 | Q24: 380 | R24: 7.7 | S24: 530 | T24: 0.06 | U24: 0.12
B25: 25 | C25: 8.41092 | D25: 1.9 | E25: 390 | F25: 7.8 | G25: 560 | H25: 0.24 | I25: 8.41092 | J25: 1.9 | K25: 420 | L25: 8.41092 | M25: 1.9 | N25: 420 | O25: 8.41092 | P25: 1.9 | Q25: 390 | R25: 7.8 | S25: 560 | T25: 0.25 | U25: 0.245
A26: June | B26: 1 | C26: 9.73896 | D26: 2.2 | E26: 350 | F26: 7.8 | G26: 500 | H26: -0.1 | I26: 9.73896 | J26: 2.2 | K26: 370 | L26: 9.73896 | M26: 2.2 | N26: 370 | O26: 9.73896 | P26: 2.2 | Q26: 360 | R26: 7.6 | S26: 510 | T26: 0.11 | U26: 0.005
B27: 8 | C27: 9.29628 | D27: 2.1 | E27: 490 | F27: 7.4 | G27: 540 | H27: -0.5 | I27: 13.2804 | J27: 3 | K27: 400 | L27: 13.2804 | M27: 3 | N27: 400 | O27: 13.2804 | P27: 3 | Q27: 410 | R27: 7.4 | S27: 500 | T27: -0.37 | U27: -0.435 | V27: <0.5 | W27: <0.005
B28: 15 | C28: 10.18164 | D28: 2.3 | E28: 400 | F28: 7.9 | G28: 560 | H28: 0.37 | I28: 9.29628 | J28: 2.1 | K28: 380 | L28: 9.29628 | M28: 2.1 | N28: 410 | O28: 9.29628 | P28: 2.1 | Q28: 400 | R28: 7.7 | S28: 550 | T28: 0.14 | U28: 0.255
B29: 22 | C29: 10.62432 | D29: 2.4 | E29: 440 | F29: 7.6 | G29: 550 | H29: -0.08 | I29: 9.73896 | J29: 2.2 | K29: 440 | L29: 9.73896 | M29: 2.2 | N29: 440 | O29: 9.73896 | P29: 2.2 | Q29: 430 | R29: 7.6 | S29: 530 | T29: -0.14 | U29: -0.11
B30: 29 | C30: 9.29628 | D30: 2.1 | E30: 330 | F30: 7.8 | G30: 500 | H30: 0.21 | I30: 9.29628 | J30: 2.1 | K30: 390 | L30: 9.29628 | M30: 2.1 | N30: 390 | O30: 9.73896 | P30: 2.2 | Q30: 350 | R30: 7.7 | S30: 480 | T30: 0 | U30: 0.105
A31: July | B31: 6 | C31: 10.62432 | D31: 2.4 | E31: 430 | F31: 7.2 | G31: 480 | H31: -0.71 | I31: 9.73896 | J31: 2.2 | K31: 450 | L31: 9.73896 | M31: 2.2 | N31: 430 | O31: 9.73896 | P31: 2.2 | Q31: 460 | R31: 7.2 | S31: 510 | T31: -0.64 | U31: -0.675 | V31: <0.5 | W31: <0.005
B32: 13 | C32: 11.95236 | D32: 2.7 | E32: 320 | F32: 7.5 | G32: 390 | H32: -0.36 | I32: 11.50968 | J32: 2.6 | K32: 410 | L32: 11.50968 | M32: 2.6 | N32: 430 | O32: 11.95236 | P32: 2.7 | Q32: 410 | R32: 7.5 | S32: 480 | T32: -0.27 | U32: -0.315
B33: 20 | C33: 11.95236 | D33: 2.7 | E33: 390 | F33: 7.5 | G33: 480 | H33: -0.35 | I33: 11.95236 | J33: 2.7 | K33: 450 | L33: 11.95236 | M33: 2.7 | N33: 460 | O33: 11.50968 | P33: 2.6 | Q33: 450 | R33: 7.4 | S33: 540 | T33: -0.36 | U33: -0.355
B34: 27 | C34: 11.50968 | D34: 2.6 | E34: 89 | F34: 8.7 | G34: 160 | H34: 0.01 | I34: 9.73896 | J34: 2.2 | K34: 390 | L34: 9.73896 | M34: 2.2 | N34: 400 | O34: 10.18164 | P34: 2.3 | Q34: 380 | R34: 7.8 | S34: 570 | T34: 0.21 | U34: 0.11
A35: Aug | B35: 3 | C35: 10.18164 | D35: 2.3 | E35: 390 | F35: 7.1 | G35: 470 | H35: -0.76 | I35: 11.50968 | J35: 2.6 | K35: 420 | L35: 11.95236 | M35: 2.7 | N35: 420 | O35: 11.50968 | P35: 2.6 | Q35: 410 | R35: 7.1 | S35: 500 | T35: -0.8 | U35: -0.78
B36: 10 | C36: 10.18164 | D36: 2.3 | E36: 330 | F36: 7.6 | G36: 440 | H36: -0.11 | I36: 13.2804 | J36: 3 | K36: 450 | L36: 13.72308 | M36: 3.1 | N36: 460 | O36: 13.72308 | P36: 3.1 | Q36: 440 | R36: 7.7 | S36: 530 | T36: 0.02 | U36: -0.045 | V36: <0.5 | W36: <0.005
B37: 17 | C37: 10.62432 | D37: 2.4 | E37: 330 | F37: 7.5 | G37: 470 | H37: -0.03 | I37: 9.73896 | J37: 2.2 | K37: 390 | L37: 9.73896 | M37: 2.2 | N37: 390 | O37: 9.73896 | P37: 2.2 | Q37: 370 | R37: 7.4 | S37: 530 | T37: -0.08 | U37: -0.055
B38: 24 | C38: =D38*4.4268 -> 11.067 | D38: 2.5 | E38: 480 | F38: 7.7 | G38: 570 | H38: 0.11 | I38: =J38*4.4268 -> 11.067 | J38: 2.5 | K38: 460 | L38: =M38*4.4268 -> 11.067 | M38: 2.5 | N38: 500 | O38: =P38*4.4268 -> 11.067 | P38: 2.5 | Q38: 460 | R38: 7.7 | S38: 570 | T38: 0.04 | U38: 0.075
B39: 31 | C39: 11.95236 | D39: 2.7 | E39: 410 | F39: 7.5 | G39: 560 | H39: -0.54 | I39: 17.26452 | J39: 3.9 | K39: 370 | L39: 17.26452 | M39: 3.9 | N39: 380 | O39: 17.7072 | P39: 4 | Q39: 380 | R39: 7.8 | S39: 560 | T39: 0.11 | U39: -0.215
A40: Sept | B40: 7 | C40: 10.18164 | D40: 2.3 | E40: 430 | F40: 7.8 | G40: 550 | H40: -0.02 | I40: 10.62432 | J40: 2.4 | K40: 470 | L40: 11.067 | M40: 2.5 | N40: 440 | O40: 10.62432 | P40: 2.4 | Q40: 460 | R40: 7.7 | S40: 560 | T40: -0.06 | U40: -0.04
B41: 14 | C41: 10.62432 | D41: 2.4 | E41: 360 | F41: 7.7 | G41: 480 | H41: -0.22 | I41: 10.62432 | J41: 2.4 | K41: 320 | L41: 10.62432 | M41: 2.4 | N41: 300 | O41: 11.067 | P41: 2.5 | Q41: 320 | R41: 7.8 | S41: 470 | T41: 0.07 | U41: -0.075 | V41: <0.5 | W41: <0.005
B42: 21 | C42: 12.83772 | D42: 2.9 | E42: 240 | F42: 7.6 | G42: 400 | H42: -0.15 | I42: 11.95236 | J42: 2.7 | K42: 320 | L42: 11.95236 | M42: 2.7 | N42: 410 | O42: 11.95236 | P42: 2.7 | Q42: 310 | R42: 7.7 | S42: 510 | T42: 0.01 | U42: -0.07
B43: 28 | C43: 11.067 | D43: 2.5 | E43: 300 | F43: 7.6 | G43: 410 | H43: -0.1 | I43: 10.62432 | J43: 2.4 | K43: 330 | L43: 10.62432 | M43: 2.4 | N43: 350 | O43: 10.62432 | P43: 2.4 | Q43: 320 | R43: 7.5 | S43: 460 | T43: -0.16 | U43: -0.13
A44: Oct | B44: 5 | C44: 10.18164 | D44: 2.3 | E44: 300 | F44: 7.6 | G44: 470 | H44: -0.17 | I44: 10.18164 | J44: 2.3 | K44: 290 | L44: 10.18164 | M44: 2.3 | N44: 290 | O44: 10.18164 | P44: 2.3 | Q44: 280 | R44: 7.6 | S44: 500 | T44: -0.07 | U44: -0.12
B45: 12 | C45: 8.8536 | D45: 2 | E45: 320 | F45: 7.6 | G45: 530 | H45: -0.32 | I45: 9.73896 | J45: 2.2 | K45: 280 | L45: 10.18164 | M45: 2.3 | N45: 280 | O45: 10.18164 | P45: 2.3 | Q45: 280 | R45: 7.7 | S45: 500 | T45: -0.07 | U45: -0.195 | V45: <0.5 | W45: <0.005
B46: 19 | C46: 7.52556 | D46: 1.7 | E46: 410 | F46: 7.5 | G46: 520 | H46: -0.39 | I46: 7.52556 | J46: 1.7 | K46: 280 | L46: 7.08288 | M46: 1.6 | N46: 270 | O46: 7.52556 | P46: 1.7 | Q46: 280 | R46: 7.7 | S46: 490 | T46: 0.03 | U46: -0.18
B47: 26 | C47: 9.73896 | D47: 2.2 | E47: 270 | F47: 7.5 | G47: 480 | H47: -0.38 | I47: 4.86948 | J47: 1.1 | K47: 290 | L47: 11.067 | M47: 2.5 | N47: 260 | O47: 9.73896 | P47: 2.2 | Q47: 360 | R47: 7.7 | S47: 480 | T47: -0.14 | U47: -0.26
A48: Nov | B48: 2 | C48: 9.73896 | D48: 2.2 | E48: 320 | F48: 7.8 | G48: 460 | H48: 0.04 | I48: 10.18164 | J48: 2.3 | K48: 330 | L48: 10.18164 | M48: 2.3 | N48: 310 | O48: 9.73896 | P48: 2.2 | Q48: 320 | R48: 7.8 | S48: 480 | T48: -0.04 | U48: 0
B49: 9 | C49: 6.6402 | D49: 1.5 | E49: 290 | F49: 7.8 | G49: 430 | H49: -0.14 | I49: 7.52556 | J49: 1.7 | K49: 390 | L49: 7.52556 | M49: 1.7 | N49: 350 | O49: 7.96824 | P49: 1.8 | Q49: 380 | R49: 7.8 | S49: 520 | T49: 0.12 | U49: -0.01
B50: 16 | C50: 7.96824 | D50: 1.8 | E50: 270 | F50: 7.7 | G50: 400 | H50: -0.02 | I50: 7.08288 | J50: 1.6 | K50: 320 | L50: 7.08288 | M50: 1.6 | N50: 290 | O50: 7.08288 | P50: 1.6 | Q50: 300 | R50: 7.7 | S50: 430 | T50: -0.05 | U50: -0.035 | V50: <0.5 | W50: <0.005
B51: 23 | C51: =D51*4.4268 -> 10.18164 | D51: 2.3 | E51: 260 | F51: 7.8 | G51: 440 | H51: 0.13 | I51: =J51*4.4268 -> 7.96824 | J51: 1.8 | K51: 270 | L51: =M51*4.4268 -> 7.96824 | M51: 1.8 | N51: 260 | O51: =P51*4.4268 -> 7.96824 | P51: 1.8 | Q51: 270 | R51: 7.8 | S51: 450 | T51: 0.11 | U51: 0.12
B52: 30 | C52: 7.52556 | D52: 1.7 | E52: 280 | F52: 7.6 | G52: 470 | H52: -0.23 | I52: 7.08288 | J52: 1.6 | K52: 310 | L52: 7.08288 | M52: 1.6 | N52: 300 | O52: 7.08288 | P52: 1.6 | Q52: 290 | R52: 7.6 | S52: 500 | T52: -0.12 | U52: -0.175
A53: Dec | B53: 7 | C53: 6.6402 | D53: 1.5 | E53: 310 | F53: 7.6 | G53: 400 | H53: -0.3 | I53: 7.96824 | J53: 1.8 | K53: 350 | L53: 7.96824 | M53: 1.8 | N53: 320 | O53: 7.52556 | P53: 1.7 | Q53: 340 | R53: 7.7 | S53: 450 | T53: -0.14 | U53: -0.22 | V53: <0.5 | W53: <0.005
B54: 14 | C54: 7.96824 | D54: 1.8 | E54: 220 | F54: 7.8 | G54: 440 | H54: -0.07 | I54: 7.52556 | J54: 1.7 | K54: 250 | L54: 7.52556 | M54: 1.7 | N54: 230 | O54: 7.52556 | P54: 1.7 | Q54: 230 | R54: 7.9 | S54: 470 | T54: 0.18 | U54: 0.055
B55: 21 | C55: 8.8536 | D55: 2 | E55: 320 | F55: 7.6 | G55: 420 | H55: -0.24 | I55: 7.96824 | J55: 1.8 | K55: 340 | L55: 7.96824 | M55: 1.8 | N55: 330 | O55: 8.41092 | P55: 1.9 | Q55: 350 | R55: 7.6 | S55: 460 | T55: -0.19 | U55: -0.215
B56: 28 | C56: 7.52556 | D56: 1.7 | E56: 210 | F56: 7.8 | G56: 350 | H56: -0.35 | I56: 7.08288 | J56: 1.6 | K56: 230 | L56: 7.08288 | M56: 1.6 | N56: 190 | O56: 7.08288 | P56: 1.6 | Q56: 220 | R56: 7.8 | S56: 370 | T56: -0.14 | U56: -0.245
A60: Min. | C60: =MIN(C5:C56) -> 6.6402 | D60: 1.5 | E60: 89 | F60: 7.1 | G60: 160 | H60: -0.76 | I60: 4.86948 | J60: 1.1 | K60: 230 | L60: 7.08288 | M60: 1.6 | N60: 190 | O60: 7.08288 | P60: 1.6 | Q60: 220 | R60: 7.1 | S60: 370 | T60: -0.8 | U60: -1.5 | V60: <0.50 | W60: <0.005
A61: Avg. | C61: =AVERAGE(C5:C56) -> 11.39049692 | D61: 2.573076923 | E61: 346.3269231 | F61: 7.688461538 | G61: 488.0769231 | H61: -0.09423076923 | I61: 10.98186923 | J61: 2.480769231 | K61: 364.8076923 | L61: 10.99038231 | M61: 2.482692308 | N61: 361.5384615 | O61: 11.10956538 | P61: 2.509615385 | Q61: 361.9230769 | R61: 7.669230769 | S61: 511.7307692 | T61: -0.04653846154 | U61: -0.5 | V61: <0.50 | W61: <0.005
A62: Max. | C62: =MAX(C5:C56) -> 18.14988 | D62: 4.1 | E62: 490 | F62: 8.7 | G62: 620 | H62: 0.37 | I62: 17.26452 | J62: 3.9 | K62: 470 | L62: 17.26452 | M62: 3.9 | N62: 500 | O62: 17.7072 | P62: 4 | Q62: 460 | R62: 7.9 | S62: 580 | T62: 0.32 | U62: 0.2 | V62: <0.50 | W62: <0.005

Sheet Sheet1
C2: Nitrate as N | D2: Total Bacti | E2: E. Coli | G2: Chlorine | H2: Chlorimines | I2: Spec Cond | J2: TDS | K2: Bicarbonate | L2: Hydroxide | M2: Magnesium | O2: pH | Q2: Sodium | R2: Total Alkalinity | T2: Total Hardness | V2: Total Silica
B3: DATE | C3: 00618 | I3: 00095 | J3: 70300 | K3: 00440 | L3: 71830 | M3: 00927 | N3: DATE | O3: 00403 | P3: DATE | Q3: 00929 | R3: 00410 | S3: DATE | T3: 00900 | U3: DATE | V3: 00955
B4: 2021-07-27 | C4: 2.3 | D4: 0 | E4: 0 | I4: 570 | J4: 380 | K4: 110 | L4: 5 | M4: 13 | N4: 2021-07-27 | O4: 7.8 | R4: 110 | S4: 2021-07-27 | T4: 190 | U4: 2021-07-13 | V4: 8.3
B5: 2021-07-20 | C5: 2.6 | I5: 540 | J5: 450 | K5: 76 | L5: 5 | M5: 12 | N5: 2021-07-20 | O5: 7.4 | R5: 76 | S5: 2021-07-20 | T5: 180 | U5: 2021-07-06 | V5: 8.8
B6: 2021-07-13 | C6: 2.7 | I6: 480 | J6: 410 | K6: 85 | L6: 6 | M6: 12 | N6: 2021-07-13 | O6: 7.5 | R6: 85 | S6: 2021-07-13 | T6: 180
B7: 2021-07-06 | C7: 2.1 | I7: 510 | J7: 460 | K7: 71 | L7: 5 | M7: 11 | N7: 2021-07-06 | O7: 7.2 | P7: 2021-07-06 | Q7: 27 | R7: 71 | S7: 2021-07-06 | T7: 170
B8: 2021-07-06 | C8: 2.2 | I8: 520 | J8: 440 | K8: 70 | L8: 5 | M8: 12 | N8: 2021-07-06 | O8: 7.4 | P8: 2021-07-06 | Q8: 26 | R8: 70 | S8: 2021-07-06 | T8: 170
B9: 2021-06-29 | C9: 2.2 | I9: 480 | J9: 350 | K9: 100 | L9: 5 | M9: 11 | N9: 2021-06-29 | O9: 7.7 | P9: 2021-06-08 | Q9: 26 | R9: 100 | S9: 2021-06-29 | T9: 170
B10: 2021-06-22 | C10: 2.2 | I10: 530 | J10: 430 | K10: 82 | L10: 5 | M10: 12 | N10: 2021-06-22 | O10: 7.6 | P10: 2021-04-13 | Q10: 27 | R10: 82 | S10: 2021-06-22 | T10: 180
B11: 2021-06-15 | C11: 2.1 | I11: 550 | J11: 400 | K11: 110 | L11: 5 | M11: 13 | N11: 2021-06-15 | O11: 7.7 | P11: 2021-03-09 | Q11: 29 | R11: 110 | S11: 2021-06-15 | T11: 200
B12: 2021-06-08 | C12: 3 | I12: 500 | J12: 410 | K12: 74 | L12: 5 | M12: 11 | N12: 2021-06-08 | O12: 7.4 | P12: 2021-02-09 | Q12: 29 | R12: 74 | S12: 2021-06-08 | T12: 180
B13: 2021-06-01 | C13: 2.2 | I13: 510 | J13: 360 | K13: 82 | L13: 5 | M13: 12 | N13: 2021-06-01 | O13: 7.6 | P13: 2021-01-12 | Q13: 26 | R13: 82 | S13: 2021-06-01 | T13: 180
B14: 2021-05-25 | C14: 1.9 | I14: 540 | J14: 420 | K14: 97 | L14: 5 | M14: 12 | N14: 2021-05-25 | O14: 7.8 | R14: 97 | S14: 2021-05-25 | T14: 190
B15: 2021-05-04 | C15: 2.8 | I15: 530 | J15: 410 | K15: 81 | L15: 5 | M15: 12 | N15: 2021-05-04 | O15: 7.5 | R15: 81 | S15: 2021-05-04 | T15: 180
B16: 2021-04-27 | C16: 2.7 | I16: 560 | J16: 420 | K16: 97 | L16: 5 | M16: 12 | N16: 2021-04-27 | O16: 7.6 | R16: 97 | S16: 2021-04-27 | T16: 190
B17: 2021-04-20 | C17: 2.8 | I17: 540 | J17: 430 | K17: 72 | L17: 5 | M17: 12 | N17: 2021-04-20 | O17: 7.6 | R17: 72 | S17: 2021-04-20 | T17: 180
B18: 2021-04-13 | C18: 2.5 | I18: 500 | J18: 310 | K18: 98 | L18: 5 | M18: 11 | N18: 2021-04-13 | O18: 7.8 | R18: 98 | S18: 2021-04-13 | T18: 170
B19: 2021-04-06 | C19: 3.2 | I19: 510 | J19: 390 | K19: 90 | L19: 5 | M19: 11 | N19: 2021-04-06 | O19: 7.8 | R19: 90 | S19: 2021-04-06 | T19: 170
B20: 2021-03-30 | C20: 2.5 | I20: 490 | J20: 340 | K20: 94 | L20: 5 | M20: 11 | N20: 2021-03-30 | O20: 7.7 | R20: 94 | S20: 2021-03-30 | T20: 170
B21: 2021-03-23 | C21: 3.2 | F21: December | I21: 550 | J21: 350 | K21: 99 | L21: 5 | M21: 12 | N21: 2021-03-23 | O21: 7.8 | R21: 99 | S21: 2021-03-23 | T21: 190
B22: 2021-03-16 | C22: 2.7 | F22: November | I22: 460 | J22: 340 | K22: 69 | L22: 5 | M22: 9.4 | N22: 2021-03-16 | O22: 7.6 | R22: 69 | S22: 2021-03-16 | T22: 140
B23: 2021-03-09 | C23: 3.2 | F23: October | I23: 560 | J23: 420 | K23: 69 | L23: 5 | M23: 11 | N23: 2021-03-09 | O23: 7.6 | R23: 69 | S23: 2021-03-09 | T23: 170
B24: 2021-03-03 | C24: 3.1 | F24: September | I24: 520 | J24: 360 | K24: 84 | L24: 5 | M24: 12 | N24: 2021-03-03 | O24: 7.7 | R24: 84 | S24: 2021-03-03 | T24: 190
B25: 2021-02-23 | C25: 2.6 | F25: August | I25: 540 | J25: 320 | K25: 69 | L25: 5 | M25: 13 | N25: 2021-02-23 | O25: 7.6 | R25: 69 | S25: 2021-02-23 | T25: 200
B26: 2021-02-16 | C26: 3.5 | F26: July | G26: 1.39 | H26: 1.39 | I26: 490 | J26: 320 | K26: 64 | L26: 5 | M26: 12 | N26: 2021-02-16 | O26: 7.6 | R26: 64 | S26: 2021-02-16 | T26: 170
B27: 2021-02-09 | C27: 3.4 | F27: June | G27: 1.22 | H27: 1.3 | I27: 550 | J27: 440 | K27: 82 | L27: 5 | M27: 13 | N27: 2021-02-09 | O27: 7.7 | R27: 82 | S27: 2021-02-09 | T27: 190
B28: 2021-02-02 | C28: 3 | F28: May | G28: 1.37 | H28: 1.34 | I28: 560 | J28: 380 | K28: 76 | L28: 5 | M28: 12 | N28: 2021-02-02 | O28: 7.8 | R28: 76 | S28: 2021-02-02 | T28: 190
B29: 2021-01-28 | C29: 3.2 | F29: April | G29: 1.4 | H29: 1.4 | I29: 580 | J29: 380 | K29: 100 | L29: 5 | M29: 13 | N29: 2021-01-28 | O29: 7.9 | R29: 100 | S29: 2021-01-28 | T29: 210
B30: 2021-01-19 | C30: 3.5 | F30: March | G30: 1.26 | H30: 1.45 | I30: 540 | J30: 380 | K30: 79 | L30: 5 | M30: 12 | N30: 2021-01-19 | O30: 7.8 | R30: 79 | S30: 2021-01-19 | T30: 180
B31: 2021-01-12 | C31: 3.1 | F31: Feb | G31: 1.21 | H31: 1.51 | I31: 510 | J31: 290 | K31: 100 | L31: 5 | M31: 12 | N31: 2021-01-12 | O31: 7.9 | R31: 100 | S31: 2021-01-12 | T31: 190
B32: 2021-01-05 | C32: 3.1 | F32: Jan | G32: 1.2 | H32: 1.48 | I32: 520 | J32: 340 | K32: 82 | L32: 5 | M32: 11 | N32: 2021-01-05 | O32: 7.8 | R32: 85 | S32: 2021-01-05 | T32: 170
